fUSD/lending_fUSD_20251023
["ID","MTS","AMOUNT","RATE_DAILY","PERIOD"]
[392207907,1761256173573,-500.0,0.00033733,2]
[392207908,1761256173594,-502.84819085,0.00033781,5]
[392207909,1761256173616,-166.66,0.00033802,30]
[392207910,1761256173636,-151.0,0.00033916,2]
[392207911,1761256173664,-225.05383692,0.00033997,2]
[392207918,1761256231955,-750.0,0.00032851,2]
[392207919,1761256231967,-1013.39514513,0.00032851,2]
[392207920,1761256232009,-553.0525,0.00032851,2]
[392207921,1761256232067,-1250.0,0.00032851,2]
[392207962,1761256232596,-327.7799999,0.00032851,2]
[392207964,1761256232608,-21982.45909221,0.00032851,2]
[392207966,1761256232619,-2669.52000002,0.00032851,2]
[392208188,1761256237963,-180.41860375,0.0003285,2]
[392208189,1761256237973,-245.21635959,0.0003285,2]
[392208190,1761256238167,-254.78364041,0.0003285,2]
[392208191,1761256238177,-242.99148958,0.0003285,2]
[392208192,1761256238187,-364.71486091,0.0003285,2]
[392208193,1761256238197,-7646.3000091,0.00032851,2]
[392208195,1761256240308,-1361.6338496,0.00032851,2]
[392208196,1761256240327,-262.36281762,0.00032851,2]
[392208198,1761256240360,-11062.0,0.00032851,2]
[392208199,1761256240433,-34963.31573272,0.00032851,2]
[392208200,1761256240445,-151.0,0.00033066,2]
[392208201,1761256240456,-151.0,0.00033153,2]
[392208202,1761256240467,-151.0,0.00033158,2]
[392208203,1761256240478,-300.0,0.00033577,120]
[392208204,1761256240489,-300.0,0.00033829,120]
[392208205,1761256240501,-400.0,0.00033996,2]
[392208206,1761256240511,-200.0,0.00033996,3]
[392208207,1761256240522,-301.39616308,0.00033997,2]
[392208208,1761256240533,-200.0,0.00033997,2]
[392208209,1761256240544,-165.72,0.00033997,2]
[392208210,1761256240555,-12364.16,0.00033997,2]
[392208211,1761256240566,-1038.0,0.00033997,2]
[392208212,1761256240577,-1424.52,0.00034143,2]
[392208213,1761256240588,-287.61899177,0.00034189,2]
[392208214,1761256240600,-151.0,0.00034464,2]
[392208215,1761256240612,-166.66,0.00034485,30]
[392208216,1761256240625,-1503.0,0.00034546,2]
[392208217,1761256240637,-500.0,0.00034573,5]
[392208218,1761256240648,-151.0,0.00034591,2]
[392208219,1761256240659,-151.0,0.00034591,2]
[392208220,1761256240672,-151.0,0.00034591,2]
[392208221,1761256240684,-151.0,0.00034591,2]
[392208222,1761256240694,-151.0,0.00034591,2]
[392208223,1761256240706,-151.0,0.00034591,2]
[392208224,1761256240718,-151.0,0.00034591,2]
[392208225,1761256240729,-151.0,0.00034591,2]
[392208226,1761256240740,-151.0,0.00034591,2]
[392208227,1761256240751,-151.0,0.00034591,2]
[392208228,1761256240762,-151.0,0.00034591,2]
[392208229,1761256240772,-151.0,0.00034591,2]
[392208230,1761256240783,-151.0,0.00034591,2]
[392208231,1761256240795,-151.0,0.00034591,2]
[392208232,1761256240805,-151.0,0.00034591,2]
[392208233,1761256240817,-151.0,0.00034591,2]
[392208234,1761256240827,-151.0,0.00034591,2]
[392208235,1761256240838,-151.0,0.00034591,2]
[392208236,1761256240851,-574.12855637,0.00034591,2]
[392208237,1761256240863,-151.0,0.00034591,2]
[392208238,1761256240874,-500.0,0.00034591,2]
[392208239,1761256240884,-151.0,0.00034591,2]
[392208240,1761256240897,-250.0,0.00034591,2]
[392208241,1761256240908,-500.0,0.00034591,2]
[392208242,1761256240918,-160.0,0.00034591,2]
[392208243,1761256240930,-151.0,0.00034591,2]
[392208244,1761256240941,-151.0,0.00034591,2]
[392208245,1761256240952,-500.0,0.00034591,2]
[392208246,1761256240964,-250.0,0.00034591,2]
[392208247,1761256240975,-500.0,0.00034591,2]
[392208248,1761256240986,-151.0,0.00034591,2]
[392208249,1761256240996,-151.0,0.00034591,2]
[392208250,1761256241007,-250.0,0.00034591,2]
[392208251,1761256241019,-500.0,0.00034591,2]
[392208252,1761256241030,-500.0,0.00034591,2]
[392208253,1761256241041,-151.0,0.00034591,2]
[392208254,1761256241052,-151.0,0.00034591,2]
[392208255,1761256241063,-250.0,0.00034591,2]
[392208256,1761256241074,-500.0,0.00034591,2]
[392208257,1761256241085,-152.1523856,0.00034591,2]
[392208258,1761256241098,-500.0,0.00034591,2]
[392208259,1761256241111,-151.0,0.00034591,2]
[392208260,1761256241122,-151.0,0.00034591,2]
[392208261,1761256241134,-250.0,0.00034591,2]
[392208262,1761256241146,-500.0,0.00034591,2]
[392208263,1761256241158,-500.0,0.00034591,2]
[392208264,1761256241171,-151.0,0.00034591,2]
[392208265,1761256241185,-151.0,0.00034591,2]
[392208266,1761256241196,-250.0,0.00034591,2]
[392208267,1761256241207,-500.0,0.00034591,2]
[392208268,1761256241219,-151.0,0.00034591,2]
[392208269,1761256241230,-500.0,0.00034591,2]
[392208270,1761256241242,-151.0,0.00034591,2]
[392208271,1761256241253,-250.0,0.00034591,2]
[392208272,1761256241265,-500.0,0.00034591,2]
[392208273,1761256241276,-151.0,0.00034591,2]
[392208274,1761256241287,-500.0,0.00034591,2]
[392208275,1761256241299,-151.0,0.00034591,2]
[392208276,1761256241310,-250.0,0.00034591,2]
[392208277,1761256241322,-500.0,0.00034591,2]
[392208278,1761256241333,-500.0,0.00034591,2]
[392208279,1761256241345,-151.0,0.00034591,2]
[392208280,1761256241357,-151.0,0.00034591,2]
[392208281,1761256241368,-250.0,0.00034591,2]
[392208282,1761256241379,-500.0,0.00034591,2]
[392208283,1761256241390,-500.0,0.00034591,2]
[392208284,1761256241401,-151.0,0.00034591,2]
[392208285,1761256241412,-151.0,0.00034591,2]
[392208286,1761256241423,-291.79566579,0.00034591,2]
[392208287,1761256241435,-250.0,0.00034591,2]
[392208288,1761256241446,-500.0,0.00034591,2]
[392208289,1761256241458,-500.0,0.00034591,2]
[392208290,1761256241469,-151.0,0.00034591,2]
[392208291,1761256241481,-151.0,0.00034591,2]
[392208292,1761256241491,-250.0,0.00034591,2]
[392208293,1761256241500,-500.0,0.00034591,2]
[392208294,1761256241509,-500.0,0.00034591,2]
[392208295,1761256241519,-151.0,0.00034591,2]
[392208296,1761256241528,-151.0,0.00034591,2]
[392208297,1761256241537,-151.0,0.00034591,2]
[392208298,1761256241546,-151.0,0.00034591,2]
[392208299,1761256241555,-151.0,0.00034591,2]
[392208300,1761256241564,-151.0,0.00034591,2]
[392208301,1761256241574,-151.0,0.00034591,2]
[392208302,1761256241583,-200.0,0.00034591,2]
[392208303,1761256241593,-151.0,0.00034591,2]
[392208304,1761256241602,-500.0,0.00034591,2]
[392208305,1761256241611,-250.0,0.00034591,2]
[392208306,1761256241620,-200.0,0.00034591,2]
[392208307,1761256241629,-151.0,0.00034591,2]
[392208308,1761256242320,-500.0,0.00034591,2]
[392208309,1761256242349,-250.0,0.00034591,2]
[392208310,1761256242384,-151.0,0.00034591,2]
[392208311,1761256242404,-500.0,0.00034591,2]
[392208312,1761256242423,-250.0,0.00034591,2]
[392208313,1761256242433,-500.0,0.00034591,2]
[392208314,1761256242442,-250.0,0.00034591,2]
[392208315,1761256242451,-500.0,0.00034591,2]
[392208316,1761256242460,-250.0,0.00034591,2]
[392208317,1761256242469,-500.0,0.00034591,2]
[392208318,1761256242479,-250.0,0.00034591,2]
[392208319,1761256242488,-500.0,0.00034591,2]
[392208320,1761256242497,-250.0,0.00034591,2]
[392208321,1761256242507,-500.0,0.00034591,2]
[392208322,1761256242515,-250.0,0.00034591,2]
[392208323,1761256242524,-500.0,0.00034591,2]
[392208324,1761256242533,-500.0,0.00034591,2]
[392208325,1761256242542,-250.0,0.00034591,2]
[392208326,1761256242552,-500.0,0.00034591,2]
[392208327,1761256242561,-500.0,0.00034591,2]
[392208328,1761256242570,-250.0,0.00034591,2]
[392208329,1761256242579,-500.0,0.00034591,2]
[392208330,1761256242588,-500.0,0.00034591,2]
[392208331,1761256242597,-250.0,0.00034591,2]
[392208332,1761256242606,-500.0,0.00034591,2]
[392208333,1761256242615,-500.0,0.00034591,2]
[392208334,1761256242624,-500.0,0.00034591,2]
[392208335,1761256242634,-500.0,0.00034591,2]
[392208336,1761256242643,-500.0,0.00034591,2]
[392208337,1761256242652,-500.0,0.00034591,2]
[392208338,1761256242661,-250.0,0.00034591,2]
[392208339,1761256242671,-600.0,0.00034591,2]
[392208340,1761256242680,-500.0,0.00034591,2]
[392208341,1761256242689,-500.0,0.00034591,2]
[392208342,1761256242699,-250.0,0.00034591,2]
[392208343,1761256242708,-500.0,0.00034591,2]
[392208345,1761256242717,-500.0,0.00034591,2]
[392208346,1761256242726,-250.0,0.00034591,2]
[392208347,1761256242735,-500.0,0.00034591,2]
[392208348,1761256242744,-500.0,0.00034591,2]
[392208349,1761256242753,-250.0,0.00034591,2]
[392208350,1761256242762,-500.0,0.00034591,2]
[392208351,1761256242772,-500.0,0.00034591,2]
[392208352,1761256242781,-250.0,0.00034591,2]
[392208353,1761256242790,-500.0,0.00034591,2]
[392208354,1761256242800,-250.0,0.00034591,2]
[392208355,1761256242809,-500.0,0.00034591,2]
[392208356,1761256242818,-151.0,0.00034591,2]
[392208357,1761256242827,-500.0,0.00034591,2]
[392208358,1761256242837,-250.0,0.00034591,2]
[392208359,1761256242846,-500.0,0.00034591,2]
[392208360,1761256242856,-151.0,0.00034591,2]
[392208361,1761256242865,-250.0,0.00034591,2]
[392208362,1761256242874,-500.0,0.00034591,2]
[392208363,1761256242884,-500.0,0.00034591,2]
[392208364,1761256242893,-151.0,0.00034591,2]
[392208365,1761256242903,-250.0,0.00034591,2]
[392208366,1761256242912,-500.0,0.00034591,2]
[392208367,1761256242922,-151.0,0.00034591,2]
[392208368,1761256242933,-500.0,0.00034591,2]
[392208369,1761256242944,-151.0,0.00034591,2]
[392208370,1761256242954,-500.0,0.00034591,2]
[392208371,1761256242964,-250.0,0.00034591,2]
[392208372,1761256242974,-500.0,0.00034591,2]
[392208373,1761256242984,-151.0,0.00034591,2]
[392208374,1761256242994,-250.0,0.00034591,2]
[392208375,1761256243003,-250.0,0.00034591,2]
[392208376,1761256243015,-500.0,0.00034591,2]
[392208377,1761256243025,-151.0,0.00034591,2]
[392208378,1761256243036,-250.0,0.00034591,2]
[392208379,1761256243049,-500.0,0.00034591,2]
[392208380,1761256243058,-151.0,0.00034591,2]
[392208381,1761256243067,-250.0,0.00034591,2]
[392208382,1761256243077,-500.0,0.00034591,2]
[392208383,1761256243086,-151.0,0.00034591,2]
[392208384,1761256243095,-250.0,0.00034591,2]
[392208385,1761256243110,-500.0,0.00034591,2]
[392208386,1761256243122,-151.0,0.00034591,2]
[392208387,1761256243131,-250.0,0.00034591,2]
[392208388,1761256243146,-500.0,0.00034591,2]
[392208389,1761256243157,-250.0,0.00034591,2]
[392208390,1761256243166,-500.0,0.00034591,2]
[392208391,1761256243179,-250.0,0.00034591,2]
[392208392,1761256243188,-250.0,0.00034591,2]
[392208393,1761256243197,-209.40437684,0.00034591,2]
[392208394,1761256243207,-250.0,0.00034591,2]
[392208395,1761256243216,-151.0,0.00034591,2]
[392208396,1761256243227,-250.0,0.00034591,2]
[392208397,1761256243236,-151.0,0.00034591,2]
[392208398,1761256243246,-250.0,0.00034591,2]
[392208399,1761256243255,-250.0,0.00034591,2]
[392208400,1761256243265,-721.12765535,0.00034591,2]
[392208401,1761256243273,-200.0,0.00034591,2]
[392208402,1761256243282,-250.0,0.00034591,2]
[392208403,1761256243292,-250.0,0.00034591,2]
[392208404,1761256243301,-250.0,0.00034591,2]
[392208405,1761256243311,-322.6107,0.00034591,2]
[392208406,1761256243320,-250.0,0.00034591,2]
[392208407,1761256243330,-250.0,0.00034591,2]
[392208408,1761256243339,-250.0,0.00034591,2]
[392208409,1761256243348,-250.0,0.00034591,2]
[392208410,1761256243358,-250.0,0.00034591,2]
[392208411,1761256243367,-250.0,0.00034591,2]
[392208412,1761256243376,-250.0,0.00034591,2]
[392208413,1761256243385,-220.0,0.00034591,2]
[392208414,1761256243395,-942.255,0.0003461,39]
[392208415,1761256243408,-1582.08489332,0.00034611,2]
[392208416,1761256243417,-20665.36,0.00034611,2]
[392208417,1761256243427,-1503.0,0.00034704,2]
[392208418,1761256243437,-596.35,0.00034705,2]
[392208419,1761256243449,-500.99980871,0.000348,5]
[392208420,1761256243458,-715.0,0.00034868,3]
[392208422,1761256243468,-409.54,0.00034985,2]
[392208424,1761256243477,-151.0,0.00035012,2]
[392208426,1761256243487,-599.60298507,0.00035049,2]
[392208428,1761256243496,-1503.0,0.00035075,2]
[392208430,1761256243505,-150.0,0.00035091,2]
[392208432,1761256243515,-500.0,0.00035116,2]
[392208434,1761256243524,-320.5756937,0.00035121,5]
[392208435,1761256243535,-595.37131296,0.00035139,2]
[392208436,1761256243544,-151.0,0.00035139,2]
[392208437,1761256243554,-200.0,0.00035139,2]
[392208438,1761256243563,-600.0,0.00035139,2]
[392208439,1761256243572,-151.0,0.00035139,2]
[392208440,1761256243582,-217.15233878,0.00035139,2]
[392208441,1761256243598,-200.0,0.00035139,2]
[392208442,1761256243608,-166.66,0.00035167,30]
[392208443,1761256243616,-1503.0,0.00035417,7]
[392208444,1761256243625,-1907.9,0.00035486,2]
[392208445,1761256243634,-300.0,0.00035499,120]
[392208446,1761256243643,-1503.0,0.00035502,2]
[392208447,1761256243652,-298.26089446,0.00035558,2]
[392208448,1761256243662,-151.0,0.0003556,2]
[392208449,1761256243671,-4165.24,0.00035663,2]
[392208450,1761256243681,-151.0,0.00035687,2]
[392208451,1761256243690,-617.40005154,0.00035687,2]
[392208452,1761256243699,-200.0,0.00035687,2]
[392208453,1761256243708,-600.0,0.00035687,2]
[392208454,1761256243717,-151.0,0.00035687,2]
[392208455,1761256243727,-225.18697532,0.00035687,2]
[392208456,1761256243736,-200.0,0.00035687,2]
[392208457,1761256243745,-1503.0,0.0003575,2]
[392208458,1761256243755,-166.66,0.0003585,30]
[392208459,1761256243764,-162.42274892,0.0003596,2]
[392208460,1761256243774,-334.5472959,0.0003596,2]
[392208461,1761256243783,-596.35,0.00036006,2]
[392208462,1761256243792,-1504.0,0.00036095,7]
[392208463,1761256243806,-151.0,0.00036108,2]
[392208464,1761256243815,-151.0,0.00036235,2]
[392208465,1761256243824,-640.24385345,0.00036235,2]
[392208466,1761256243834,-200.0,0.00036235,2]
[392208467,1761256243843,-600.0,0.00036235,2]
[392208468,1761256243852,-151.0,0.00036235,2]
[392208469,1761256243861,-233.51889341,0.00036235,2]
[392208470,1761256243871,-200.0,0.00036235,2]
[392208471,1761256243879,-1503.0,0.00036306,2]
[392208472,1761256243889,-1850.5258,0.00036319,2]
[392208473,1761256243897,-278.9521,0.00036319,2]
[392208474,1761256243908,-1035.37781,0.0003632,2]
[392208475,1761256243918,-1504.0,0.00036346,2]
[392208476,1761256243927,-1806.0,0.00036369,2]
[392208477,1761256243936,-3471.2151,0.00036419,2]
[392208478,1761256243946,-1000.0,0.00036419,2]
[392208479,1761256243955,-214.44390913,0.00036419,2]
[392208480,1761256243965,-220.0,0.00036419,4]
[392208481,1761256243975,-17041.40254033,0.00036419,2]
[392208482,1761256243984,-664.96019804,0.0003643,2]
[392208483,1761256243996,-2500.0,0.00036432,2]
[392208484,1761256244007,-1035.3778,0.0003644,2]
[392208485,1761256244017,-9651.75,0.00036463,2]
[392208486,1761256244027,-1018.23534967,0.00036473,2]
[392208487,1761256244036,-300.0,0.00036474,120]
[392208488,1761256244045,-560.0,0.00036489,2]
[392208489,1761256244055,-1177.65810365,0.00036496,30]
[392208490,1761256244064,-1000.0,0.00036496,2]
[392208491,1761256244074,-300.0,0.000365,13]
[392208492,1761256244084,-180.88547733,0.00036501,15]
[392208493,1761256244094,-778.68068586,0.00036502,8]
[392208494,1761256244108,-1196.15016964,0.00036502,2]
[392208495,1761256244118,-500.0,0.00036518,120]
[392208496,1761256244128,-500.0,0.00036518,7]
[392208497,1761256244138,-500.0,0.00036518,120]
[392208498,1761256244147,-500.0,0.00036518,2]
[392208499,1761256244158,-1000.0,0.00036519,2]
[392208500,1761256244168,-33161.3116,0.00036519,2]
[392208501,1761256244177,-1000.0,0.00036519,120]
[392208502,1761256244187,-61671.37786062,0.00036519,2]
[392208503,1761256244197,-15940.049481,0.00036522,3]
[392208504,1761256244206,-196.58153261,0.00036524,2]
[392208505,1761256244216,-500.0,0.00036531,120]
[392208506,1761256244226,-81065.3828,0.00036532,2]
[392208507,1761256244236,-3036.7280199,0.00036553,2]
[392208508,1761256244247,-15940.049481,0.00036568,3]
[392208509,1761256244259,-1035.37781,0.0003657,2]
[392208510,1761256244272,-501.45754319,0.00036573,5]
[392208511,1761256244282,-500.0,0.00036573,5]
[392208512,1761256244291,-500.0,0.00036573,5]
[392208513,1761256244301,-501.84001775,0.00036573,5]
[392208514,1761256244311,-500.0,0.00036573,5]
[392208515,1761256244321,-500.0,0.00036573,5]
[392208516,1761256244331,-500.0,0.00036573,5]
[392208517,1761256244341,-163.81490866,0.00036573,5]
[392208518,1761256244351,-500.83660294,0.00036573,5]
[392208519,1761256244361,-500.0,0.00036573,5]
[392208520,1761256244371,-200.0,0.00036573,5]
[392208521,1761256244380,-500.0,0.00036573,5]
[392208522,1761256244399,-500.0,0.00036573,5]
[392208523,1761256244411,-500.30913434,0.00036573,5]
[392208524,1761256244421,-500.0,0.00036573,5]
[392208525,1761256244431,-500.0,0.00036573,5]
[392208526,1761256244442,-500.0,0.00036573,5]
[392208527,1761256244452,-500.0,0.00036573,5]
[392208528,1761256244462,-500.0,0.00036573,5]
[392208529,1761256244472,-150.0,0.00036575,7]
[392208530,1761256244483,-150.0,0.00036575,7]
[392208531,1761256244493,-1806.0,0.00036578,7]
[392208532,1761256244503,-808.49251722,0.0003658,2]
[392208533,1761256244513,-9651.75,0.00036582,2]
[392208534,1761256244523,-31880.098962,0.00036592,3]
[392208535,1761256244533,-173.40906324,0.00036592,2]
[392208536,1761256244543,-700.0,0.000366,13]
[392208537,1761256244553,-300.0,0.00036601,10]
[392208538,1761256244563,-305.96260042,0.00036601,10]
[392208539,1761256244572,-300.0,0.00036601,10]
[392208540,1761256244582,-500.0,0.00036601,120]
[392208541,1761256244592,-500.0,0.00036601,120]
[392208542,1761256244601,-525.20728981,0.00036601,120]
[392208543,1761256244612,-500.0,0.00036601,120]
[392208544,1761256244624,-500.0,0.00036601,120]
[392208545,1761256244635,-500.0,0.00036601,120]
[392208546,1761256244646,-500.0,0.00036601,120]
[392208547,1761256244656,-500.0,0.00036601,120]
[392208548,1761256244666,-500.0,0.00036601,120]
[392208549,1761256244676,-500.0,0.00036601,120]
[392208550,1761256244686,-500.0,0.00036601,120]
[392208551,1761256244696,-500.0,0.00036601,120]
[392208552,1761256244706,-500.0,0.00036601,120]
[392208553,1761256244716,-500.0,0.00036601,120]
[392208554,1761256244726,-500.0,0.00036601,120]
[392208555,1761256244736,-500.0,0.00036601,120]
[392208556,1761256244745,-500.0,0.00036601,120]
[392208557,1761256244756,-500.0,0.00036601,7]
[392208558,1761256244766,-500.0,0.00036601,7]
[392208559,1761256244778,-500.0,0.00036601,7]
[392208560,1761256244788,-500.0,0.00036601,7]
[392208561,1761256244797,-500.0,0.00036601,7]
[392208562,1761256244807,-500.0,0.00036601,7]
[392208563,1761256244817,-500.0,0.00036601,7]
[392208564,1761256244827,-500.0,0.00036601,7]
[392208565,1761256244838,-218.89460951,0.00036601,7]
[392208566,1761256244847,-509.4660759,0.00036601,120]
[392208567,1761256244857,-500.0,0.00036601,2]
[392208568,1761256244867,-354.5594112,0.00036601,120]
[392208569,1761256244876,-151.0,0.00036602,30]
[392208570,1761256244886,-151.0,0.00036602,30]
[392208571,1761256244896,-155.395566,0.00036602,30]
[392208572,1761256244906,-151.0,0.00036602,30]
[392208573,1761256244916,-151.0,0.00036602,30]
[392208574,1761256244926,-151.0,0.00036602,30]
[392208575,1761256244937,-151.0,0.00036602,30]
[392208576,1761256244947,-151.0,0.00036602,30]
[392208577,1761256244957,-151.0,0.00036602,30]
[392208578,1761256244967,-151.0,0.00036602,10]
[392208579,1761256244977,-151.0,0.00036602,10]
[392208580,1761256244987,-151.0,0.00036602,30]
[392208581,1761256244998,-151.0,0.00036602,30]
[392208582,1761256245007,-151.0,0.00036602,30]
[392208583,1761256245017,-151.0,0.00036602,30]
[392208584,1761256245028,-151.0,0.00036602,30]
[392208585,1761256245038,-151.0,0.00036602,30]
[392208586,1761256245048,-151.0,0.00036602,30]
[392208587,1761256245057,-151.0,0.00036602,30]
[392208588,1761256245067,-151.0,0.00036602,30]
[392208589,1761256245077,-151.0,0.00036602,30]
[392208590,1761256245086,-151.0,0.00036602,30]
[392208591,1761256245097,-151.0,0.00036602,30]
[392208592,1761256245114,-151.0,0.00036602,30]
[392208593,1761256245123,-151.0,0.00036602,30]
[392208594,1761256245135,-151.0,0.00036602,30]
[392208595,1761256245147,-151.0,0.00036602,30]
[392208596,1761256245158,-151.0,0.00036602,30]
[392208597,1761256245169,-151.0,0.00036602,30]
[392208598,1761256245178,-151.0,0.00036602,30]
[392208599,1761256245188,-151.0,0.00036602,30]
[392208600,1761256245197,-151.0,0.00036602,30]
[392208601,1761256245207,-151.0,0.00036602,30]
[392208602,1761256245217,-151.0,0.00036602,30]
[392208603,1761256245227,-284.862604,0.00036602,15]
[392208604,1761256245238,-151.0,0.00036602,30]
[392208605,1761256245248,-151.0,0.00036602,30]
[392208606,1761256245258,-157.91864,0.00036602,30]
[392208607,1761256245267,-151.0,0.00036602,30]
[392208608,1761256245277,-152.930209,0.00036602,30]
[392208609,1761256245287,-151.0,0.00036602,30]
[392208610,1761256245296,-151.0,0.00036602,30]
[392208611,1761256245306,-151.0,0.00036602,30]
[392208612,1761256245315,-151.0,0.00036602,30]
[392208613,1761256245325,-274.82663,0.00036602,30]
[392208614,1761256245334,-153.708584,0.00036602,30]
[392208615,1761256245343,-151.0,0.00036602,30]
[392208616,1761256245354,-151.0,0.00036602,30]
[392208617,1761256245363,-151.0,0.00036602,30]
[392208618,1761256245373,-151.0,0.00036602,30]
[392208619,1761256245383,-151.0,0.00036602,30]
[392208620,1761256245392,-155.251682,0.00036602,30]
[392208621,1761256245402,-151.0,0.00036602,30]
[392208622,1761256245411,-151.0,0.00036602,30]
[392208623,1761256245420,-151.0,0.00036602,30]
[392208624,1761256245430,-151.0,0.00036602,30]
[392208625,1761256245439,-151.0,0.00036602,30]
[392208626,1761256245449,-151.0,0.00036602,30]
[392208627,1761256245458,-151.0,0.00036602,30]
[392208628,1761256245467,-151.0,0.00036602,30]
[392208629,1761256245476,-151.0,0.00036602,30]
[392208630,1761256245485,-152.549496,0.00036602,30]
[392208631,1761256245495,-151.0,0.00036602,30]
[392208632,1761256245503,-151.0,0.00036602,30]
[392208633,1761256245513,-151.0,0.00036602,30]
[392208634,1761256245524,-151.0,0.00036602,30]
[392208635,1761256245533,-151.0,0.00036602,30]
[392208636,1761256245543,-151.0,0.00036602,30]
[392208637,1761256245553,-151.0,0.00036602,30]
[392208638,1761256245562,-151.0,0.00036602,30]
[392208639,1761256245571,-151.0,0.00036602,30]
[392208640,1761256245580,-214.36247,0.00036602,30]
[392208641,1761256245589,-151.0,0.00036602,30]
[392208642,1761256245598,-160.145493,0.00036602,30]
[392208643,1761256245608,-151.0,0.00036602,30]
[392208644,1761256245619,-151.0,0.00036602,30]
[392208645,1761256245628,-151.0,0.00036602,30]
[392208646,1761256245638,-151.0,0.00036602,30]
[392208647,1761256245648,-151.0,0.00036602,30]
[392208648,1761256245658,-151.0,0.00036602,30]
[392208649,1761256245668,-151.0,0.00036602,30]
[392208650,1761256245678,-151.0,0.00036602,30]
[392208651,1761256245687,-151.0,0.00036602,30]
[392208652,1761256245697,-151.0,0.00036602,30]
[392208653,1761256245706,-236.526497,0.00036602,30]
[392208654,1761256245716,-152.92307,0.00036602,14]
[392208656,1761256245725,-151.0,0.00036602,30]
[392208659,1761256245734,-151.0,0.00036602,30]
[392208662,1761256245743,-151.0,0.00036602,30]
[392208665,1761256245753,-151.0,0.00036602,30]
[392208668,1761256245763,-151.0,0.00036602,30]
[392208671,1761256245772,-151.0,0.00036602,30]
[392208674,1761256245781,-151.0,0.00036602,30]
[392208677,1761256245791,-151.0,0.00036602,30]
[392208680,1761256245800,-151.0,0.00036602,30]
[392208683,1761256245809,-151.0,0.00036602,30]
[392208686,1761256245820,-151.0,0.00036602,30]
[392208688,1761256245829,-151.0,0.00036602,30]
[392208689,1761256245839,-162.247465,0.00036602,30]
[392208690,1761256245848,-154.401262,0.00036602,30]
[392208691,1761256245857,-151.0,0.00036602,30]
[392208692,1761256245867,-151.0,0.00036602,30]
[392208693,1761256245876,-153.16293,0.00036602,30]
[392208694,1761256245886,-152.860398,0.00036602,30]
[392208695,1761256245895,-151.0,0.00036602,30]
[392208696,1761256245906,-151.0,0.00036602,30]
[392208697,1761256245915,-151.0,0.00036602,30]
[392208698,1761256245924,-164.222576,0.00036602,30]
[392208699,1761256245933,-164.222576,0.00036602,30]
[392208700,1761256245943,-151.0,0.00036602,30]
[392208701,1761256245952,-151.0,0.00036602,30]
[392208702,1761256245961,-164.222576,0.00036602,30]
[392208703,1761256245971,-164.222576,0.00036602,30]
[392208704,1761256245981,-151.0,0.00036602,30]
[392208705,1761256245990,-164.222576,0.00036602,30]
[392208706,1761256245999,-164.222576,0.00036602,30]
[392208707,1761256246009,-151.0,0.00036602,30]